bitfinex/quotes_ETHUSD_20241231
["timestamp","ask_amount","ask_price","bid_price","bid_amount"]
[1735610333796,0.02696458,3345.1,3344.4,0.83289734]
[1735610334067,0.02696458,3345.1,3344.2,3.79321]
[1735610334195,0.02696458,3345.1,3344.1,0.803]
[1735610334196,0.7675,3345.0,3344.1,0.803]
[1735610334534,0.7675,3345.0,3344.4,2.99007]
[1735610334917,0.02715669,3344.9,3344.4,2.99007]
[1735610335778,0.02715669,3344.9,3344.2,0.0288937]
[1735610336010,0.7675,3345.0,3344.6,3.79287]
[1735610336184,0.7675,3345.0,3344.4,2.99005]
[1735610336380,0.02708753,3344.9,3344.4,2.99005]
[1735610340233,0.7675,3345.0,3344.4,2.99005]
[1735610342019,0.7675,3345.0,3344.2,0.803]
[1735610342204,0.7675,3345.7,3344.8,2.98963]
[1735610342523,0.02640304,3345.6,3344.8,2.98963]
[1735610342679,0.7675,3345.5,3344.8,2.98963]
[1735610343014,0.02640304,3345.4,3344.6,3.79285]
[1735610343188,0.02640304,3345.4,3344.6,1.22123664]
[1735610343395,0.7675,3345.5,3344.9,2.9896]
[1735610343595,0.0265875,3345.4,3344.9,2.9896]
[1735610343789,0.0265875,3345.4,3344.6,1.22123664]
[1735610343790,0.0265875,3345.4,3344.7,2.98978]
[1735610343989,0.7675,3345.5,3344.9,2.98962]
[1735610344177,0.02668741,3345.4,3344.9,2.98962]
[1735610345594,0.7675,3345.5,3344.7,2.98979]
[1735610345792,0.02668741,3345.4,3344.6,6.5]
[1735610346140,0.7597,3345.2,3344.5,2.98994]
[1735610348188,0.7597,3345.2,3344.6,2.98987]
[1735610349136,0.7597,3345.2,3344.7,0.02989472]
[1735610349344,0.7597,3345.2,3344.6,2.98987]
[1735610350744,0.7597,3346.2,3344.9,2.98962]
[1735610351042,0.7597,3346.2,3345.3,2.98919]
[1735610351339,0.7597,3346.2,3345.3,2.98918]
[1735610351703,0.7597,3346.2,3344.9,3.754]
[1735610351904,0.7597,3346.2,3345.5,2.98908]
[1735610352957,0.7597,3346.2,3345.3,2.98925]
[1735610353701,0.7597,3346.1,3345.0,9.48948]
[1735610354131,0.7597,3346.1,3345.0,2.98948]
[1735610356528,0.7597,3346.1,3344.9,0.754]
[1735610356739,0.7597,3346.0,3345.1,2.98943]
[1735610358812,0.7597,3346.0,3345.2,2.98932]
[1735610359012,0.7597,3346.0,3345.3,3.01915007]
[1735610359213,0.7597,3346.0,3345.3,2.98926]
[1735610359440,0.7597,3346.0,3345.0,1.0254]
[1735610359769,0.7597,3346.0,3345.1,3.68534226]
[1735610359936,0.7597,3346.0,3345.2,2.98931]
[1735610360138,0.7597,3346.0,3345.1,0.69592226]
[1735610360360,0.7597,3346.0,3345.4,2.98917]
[1735610361929,0.7597,3346.0,3345.1,2.98939]
[1735610362259,1.134508,3346.0,3345.1,2.98939]
[1735610362787,0.784,3345.9,3345.1,2.98939]
[1735610364477,0.784,3345.9,3345.2,2.98934]
[1735610366079,0.784,3345.9,3344.9,0.754]
[1735610366305,0.784,3345.9,3345.0,2.98952]
[1735610366451,1.161258,3345.9,3345.0,2.98952]
[1735610366651,0.784,3345.8,3345.0,2.98952]
[1735610368851,0.784,3345.8,3345.1,2.98942]
[1735610374144,0.784,3345.8,3345.6,2.98898]
[1735610374423,0.784,3345.8,3345.5,2.98903]
[1735610374642,2.98812,3346.6,3345.6,0.374963]
[1735610374799,0.784,3346.4,3345.1,2.98942]
[1735610374985,0.784,3346.1,3345.1,2.98942]
[1735610375518,0.784,3346.1,3345.2,2.98935]
[1735610375704,0.784,3346.1,3345.3,2.98924]
[1735610376538,0.7796,3346.0,3345.1,2.98943]
[1735610383400,0.7796,3346.0,3344.7,5.01697915]
[1735610383401,0.7796,3345.8,3344.8,3.0]
[1735610383594,0.7796,3345.8,3344.7,3.7705]
[1735610384635,0.7796,3345.8,3344.9,2.98955]
[1735610386327,0.7796,3345.8,3345.0,2.98951]
[1735610388979,1.156422,3345.8,3345.0,2.98951]
[1735610389157,0.7796,3345.7,3345.0,2.98951]
[1735610395402,0.7796,3345.7,3344.7,11.52723915]
[1735610395592,0.7796,3345.7,3345.1,2.98944]
[1735610396175,0.7796,3345.7,3344.8,2.58000738]
[1735610396390,0.7796,3345.7,3345.2,2.98935]
[1735610397408,0.7796,3345.7,3345.4,2.9891]
[1735610400108,0.7796,3345.7,3345.5,2.98903]
[1735610400283,0.7697,3346.5,3345.2,2.98935]
[1735610400485,0.675774,3346.5,3345.5,2.98903]
[1735610400683,0.7697,3346.4,3345.5,2.98903]
[1735610403097,0.55,3346.3,3345.1,7.24616915]
[1735610403290,0.7697,3346.1,3345.1,7.24616915]
[1735610403721,2.98876,3345.9,3345.1,1.25673915]
[1735610403928,0.7697,3345.8,3345.2,2.57954743]
[1735610404238,2.0609572,3345.5,3345.2,2.57954743]
[1735610404438,0.7697,3345.4,3345.2,2.57954743]
[1735610404732,0.7697,3345.3,3345.2,2.57954743]
[1735610405101,0.7697,3345.3,3344.6,2.98987]
[1735610405298,0.7697,3345.3,3344.7,2.98977]
[1735610405509,0.7697,3345.3,3344.7,4.2810272]
[1735610405716,0.7697,3345.3,3344.8,0.42810272]
[1735610405926,0.8057,3345.9,3344.9,1.2912572]
[1735610406128,0.8057,3345.9,3345.1,2.98936]
[1735610406750,0.8057,3345.9,3345.2,2.98934]
[1735610406959,0.8057,3345.9,3345.3,0.298934]
[1735610407140,0.8057,3345.9,3345.4,2.98914]
[1735610407340,0.8057,3345.9,3345.5,2.98905]
[1735610407713,0.8057,3346.8,3345.3,1.060834]
[1735610407918,0.8057,3346.8,3345.4,0.02966014]
[1735610408152,0.8057,3346.6,3345.4,7.18065142]
[1735610408360,0.8057,3346.6,3345.6,2.98891]
[1735610408576,0.8057,3346.6,3345.4,8.21228685]
[1735610408787,0.8057,3346.6,3346.0,2.98855]
[1735610410357,0.8057,3346.6,3345.6,2.989]
[1735610410561,0.8057,3346.6,3345.7,0.31363412]
[1735610410723,0.8057,3346.6,3346.3,2.98836]
[1735610410923,0.8057,3347.2,3346.4,2.98823]
[1735610411470,0.8057,3347.2,3346.1,0.7619]
[1735610411773,0.8057,3347.2,3346.2,2.98844]
[1735610411920,0.8057,3347.0,3346.0,2.98863]
[1735610412562,0.8057,3347.0,3345.8,2.98882]
[1735610412716,0.8057,3347.0,3346.2,2.98838]
[1735610413136,0.8057,3347.0,3346.0,2.98862]
[1735610419382,0.8057,3347.0,3345.7,1.07553412]
[1735610419561,0.7755,3346.9,3345.9,2.9887]
[1735610419759,0.7755,3346.9,3345.7,4.07553412]
[1735610420065,0.7755,3346.9,3345.9,2.98865]
[1735610420270,0.7755,3346.9,3345.9,3.01853385]
[1735610420587,0.7755,3346.9,3345.9,2.98865]
[1735610421110,0.7755,3346.7,3345.9,2.98865]
[1735610423998,0.7755,3346.7,3345.8,1.33022542]
[1735610424166,0.7755,3346.7,3346.0,2.98864]
[1735610424359,0.02724964,3346.6,3345.9,0.39109684]
[1735610424556,0.02724964,3346.6,3346.2,2.98837]
[1735610424758,0.7755,3346.7,3346.0,2.98862]
[1735610424977,0.7755,3346.7,3345.9,0.39109684]
[1735610425179,0.7755,3346.7,3346.1,2.98851]
[1735610425383,0.02724964,3346.6,3346.1,2.98851]
[1735610425795,0.7755,3346.7,3346.1,2.98851]
[1735610426155,0.02724964,3346.6,3346.1,2.98851]
[1735610426722,0.7755,3346.7,3346.0,1.06529968]
[1735610426917,0.7755,3346.7,3345.9,2.98872]
[1735610427060,0.7861,3346.5,3345.9,2.98872]
[1735610427718,0.02724964,3346.4,3345.9,2.98872]
[1735610434729,0.7861,3346.3,3345.9,2.98872]
[1735610435065,0.02727271,3346.2,3345.9,2.98872]
[1735610435290,0.7861,3346.3,3345.9,2.98872]
[1735610435672,0.02727271,3346.2,3345.9,2.98872]
[1735610435872,0.7861,3346.3,3345.5,10.27034]
[1735610435873,0.7861,3346.3,3345.5,7.2813]
[1735610436080,0.7861,3346.3,3345.2,10.30158]
[1735610436301,0.7861,3346.3,3345.3,1.15583191]
[1735610436596,0.79997271,3346.2,3345.5,2.98901]
[1735610437162,0.79997271,3346.2,3345.6,2.98899]
[1735610437374,0.7727,3346.2,3345.6,2.98899]
[1735610443180,0.7727,3346.2,3345.2,0.8123]
[1735610443394,0.7727,3346.2,3345.3,2.98919]
[1735610443617,0.7727,3346.0,3345.3,2.98919]
[1735610444117,0.02708828,3345.9,3345.3,2.98919]
[1735610444338,0.7727,3345.8,3345.3,2.98919]
[1735610445016,0.7727,3345.6,3344.8,6.5]
[1735610445190,0.7727,3345.6,3344.7,1.25673915]
[1735610445393,0.7727,3345.4,3344.7,1.25673915]
[1735610445616,0.7727,3345.4,3344.6,6.5]
[1735610445976,0.7727,3345.3,3344.6,6.5]
[1735610446180,0.7727,3345.3,3344.2,4.24696915]
[1735610446478,0.7727,3345.3,3343.7,12.63246788]
[1735610446479,3.76222,3345.1,3344.0,2.99041]
[1735610446720,0.7727,3344.9,3344.0,2.99041]
[1735610447333,0.7727,3344.9,3343.8,1.25673915]
[1735610447521,0.7727,3344.8,3343.8,4.24732915]
[1735610447722,0.7727,3344.8,3343.8,2.99059]
[1735610449940,0.7727,3344.8,3343.9,2.9905]
[1735610450131,0.7727,3344.8,3343.9,3.56216882]
[1735610450339,0.7727,3344.8,3343.9,0.57166882]
[1735610450657,0.7727,3344.8,3343.7,3.8123]
[1735610451057,0.7727,3344.8,3343.8,2.99059]
[1735610451636,0.7727,3344.8,3343.5,3.7668]
[1735610451841,0.7727,3344.8,3343.6,2.9907]
[1735610451842,0.7565,3344.7,3343.6,2.9907]
[1735610452366,0.7565,3344.6,3343.4,2.99096]
[1735610452568,0.374624,3344.6,3343.4,2.99096]
[1735610452871,0.7565,3344.5,3343.4,2.99096]
[1735610453538,0.7565,3344.4,3343.4,2.99096]
[1735610454062,0.7565,3344.3,3343.2,2.99113]
[1735610454267,0.374658,3344.2,3343.2,2.99113]
[1735610454463,0.7565,3344.1,3343.2,2.99113]
[1735610454667,0.7565,3344.1,3343.0,2.99132]
[1735610455374,0.7565,3344.1,3342.8,2.99141]
[1735610455375,0.7565,3344.0,3342.8,2.99141]
[1735610455523,0.7565,3343.9,3342.9,2.99141]
[1735610459573,0.7565,3343.9,3342.7,0.7668]
[1735610459779,0.7565,3343.9,3342.7,3.75838]
[1735610459947,0.7565,3343.7,3342.7,3.75838]
[1735610460351,0.7565,3343.7,3342.8,2.99148]
[1735610461151,0.7565,3343.7,3342.7,0.7668]
[1735610461357,0.7565,3343.7,3342.9,2.9914]
[1735610463584,0.7565,3343.7,3342.7,0.7668]
[1735610463585,0.7565,3343.7,3343.1,2.99118]
[1735610464186,0.7565,3343.7,3343.2,2.99113]
[1735610464401,0.7565,3344.5,3343.2,0.7668]
[1735610464574,0.7565,3344.5,3343.8,2.9906]
[1735610465386,0.7565,3344.5,3343.3,2.99105]
[1735610465545,0.7565,3344.5,3343.7,2.99068]
[1735610466212,0.7565,3344.5,3343.7,0.765]
[1735610466462,0.7735,3345.3,3344.6,2.98989]
[1735610466771,0.7735,3345.3,3344.7,2.98977]
[1735610468298,0.34111805,3345.2,3344.3,6.5]
[1735610468503,0.7735,3345.1,3344.3,6.5]
[1735610469176,0.7735,3345.1,3344.2,2.99019]
[1735610471794,0.7735,3345.1,3344.4,2.99004]
[1735610471995,0.7735,3345.1,3344.5,2.98996]
[1735610472593,5.71463823,3346.3,3345.0,2.98953]
[1735610472809,1.16837462,3346.2,3345.0,2.98953]
[1735610473118,0.7735,3346.0,3345.0,2.98953]
[1735610473300,0.7735,3346.0,3345.2,2.98934]
[1735610473505,1.51263276,3346.0,3345.2,2.98934]
[1735610473707,0.7735,3346.0,3345.2,2.98934]
[1735610475629,0.7735,3346.0,3345.3,2.98925]
[1735610476007,0.7735,3346.0,3344.9,6.5]
[1735610476316,0.7735,3346.0,3345.1,2.98943]
[1735610478286,0.7735,3346.0,3345.2,2.98934]
[1735610483335,0.7735,3346.0,3344.8,7.265]
[1735610483539,0.7735,3346.0,3345.3,2.98917]
[1735610485303,0.7735,3346.0,3345.1,2.98942]
[1735610486888,0.7764,3345.9,3344.7,6.5]
[1735610487181,0.7764,3345.6,3344.6,2.98988]
[1735610487479,2.989,3345.6,3344.5,0.298996]
[1735610487768,0.7764,3345.3,3344.1,6.5]
[1735610488102,0.7764,3345.3,3344.2,3.0]
[1735610488610,0.7764,3345.3,3344.2,2.99023]
[1735610488866,0.7764,3345.1,3344.2,2.99023]
[1735610489386,0.55,3345.0,3343.7,0.7501]
[1735610489685,0.7764,3344.9,3343.7,0.7501]
[1735610489886,0.7764,3344.8,3343.8,2.99053]
[1735610491265,0.7764,3344.7,3343.3,3.0]
[1735610491559,0.7764,3344.5,3343.5,2.99085]
[1735610493116,0.7764,3344.5,3343.6,2.99078]
[1735610495384,0.7764,3344.5,3343.7,2.99064]
[1735610496285,0.7764,3344.5,3343.4,0.02990495]
[1735610496583,0.7764,3344.5,3343.8,2.99057]
[1735610496861,0.7764,3344.5,3343.9,2.99044]
[1735610497219,0.7764,3344.5,3343.7,2.99069]
[1735610498826,0.7764,3344.5,3343.2,3.0]
[1735610499021,0.827,3344.4,3343.1,3.0]
[1735610499255,0.827,3344.4,3343.5,2.99085]
[1735610499256,0.827,3344.3,3343.5,2.99085]
[1735610499858,0.827,3344.3,3343.1,0.72998]
[1735610499859,0.827,3344.3,3343.2,0.02990496]
[1735610500065,0.827,3344.3,3343.3,3.0]
[1735610500240,0.827,3344.3,3343.4,0.6751025]
[1735610500956,0.827,3344.3,3343.7,2.99069]
[1735610501843,0.827,3344.3,3343.9,2.99046]
[1735610503836,0.827,3345.0,3343.7,3.02059152]
[1735610504072,0.827,3345.0,3344.4,2.99004]
[1735610505375,0.827,3345.0,3344.0,0.7998]
[1735610505672,0.827,3345.0,3344.2,2.99019]
[1735610505969,0.827,3345.0,3344.2,3.98153226]
[1735610506133,0.827,3345.5,3344.8,2.98971]
[1735610506336,0.827,3345.5,3344.8,2.9897]
[1735610506858,0.827,3345.5,3344.6,0.7998]
[1735610507184,0.827,3346.2,3345.1,2.98943]
[1735610507474,3.827,3346.2,3345.1,2.98943]
[1735610508341,0.827,3346.1,3345.1,2.98943]
[1735610511299,0.8033,3346.0,3344.9,2.98962]
[1735610511599,1.49804009,3346.0,3344.9,3.98096226]
[1735610512374,1.49804009,3346.0,3344.6,7.2998]
[1735610512375,0.8033,3345.9,3344.8,0.02989105]
[1735610512874,0.8033,3345.9,3344.6,7.2998]
[1735610512875,0.8033,3345.9,3344.7,2.98975]
[1735610513374,0.8033,3345.9,3344.8,2.9897]
[1735610519280,0.8033,3345.9,3344.6,3.7998]
[1735610519577,1.03585814,3346.0,3344.6,6.78967]
[1735610519578,0.8033,3345.7,3344.6,6.78967]
[1735610520122,0.8033,3345.7,3344.6,5.98987]
[1735610520418,0.8033,3345.7,3344.7,2.98978]
[1735610522732,0.8033,3345.7,3344.6,3.0]
[1735610522899,1.00955614,3345.7,3344.8,2.98969]
[1735610523238,0.8033,3345.6,3344.8,2.98969]
[1735610525829,0.8033,3345.6,3344.9,2.98961]
[1735610526025,0.8033,3345.6,3345.0,0.298961]
[1735610526197,0.8033,3345.6,3344.9,2.98961]
[1735610526699,0.8033,3345.6,3344.6,0.675881]
[1735610527063,0.8033,3345.6,3345.0,2.98944]
[1735610527867,0.8033,3345.6,3345.3,2.98926]
[1735610528136,0.8033,3345.6,3345.4,0.298926]
[1735610528336,0.8033,3345.6,3345.3,2.98926]
[1735610531817,0.8033,3345.6,3344.9,6.5]
[1735610532114,0.8033,3345.6,3344.8,2.98967]
[1735610532943,0.8033,3345.6,3344.9,2.98958]
[1735610533117,0.8033,3345.6,3345.0,2.98948]
[1735610533342,0.8033,3345.6,3345.0,3.288428]
[1735610535529,0.8033,3345.6,3345.0,2.98948]
[1735610535738,0.8033,3345.6,3344.7,5.98973]
[1735610536130,0.8033,3345.6,3344.7,3.0]
[1735610536371,0.8033,3345.6,3344.7,3.02989117]
[1735610536556,0.8033,3345.6,3345.0,2.98953]
[1735610537347,0.8033,3345.6,3345.0,4.03497126]
[1735610540088,0.8033,3345.6,3345.0,1.85534126]
[1735610540378,0.8017,3346.3,3345.5,2.98906]
[1735610541561,0.8017,3346.3,3345.6,0.8127]
[1735610541761,0.8017,3346.3,3345.9,2.98871]
[1735610541946,0.8017,3346.3,3345.9,3.368851]
[1735610543276,0.8017,3346.3,3345.9,2.98871]
[1735610544461,0.7665,3347.0,3345.6,7.3127]
[1735610544672,0.7665,3347.0,3346.0,2.98855]
[1735610545851,0.7665,3347.0,3345.7,2.98891]
[1735610546093,0.7665,3347.0,3345.7,3.0]
[1735610546278,0.7665,3347.0,3346.1,2.98846]
[1735610547283,0.7665,3347.0,3346.3,2.98836]
[1735610547451,0.7665,3347.0,3346.4,0.02987964]
[1735610547648,0.7665,3347.0,3346.4,3.01814964]
[1735610548067,0.7665,3347.0,3346.4,2.98827]
[1735610548683,0.7665,3347.0,3346.5,0.02987986]
[1735610548864,0.7665,3347.0,3346.2,0.02987871]
[1735610549086,0.7665,3347.0,3346.5,2.98818]
[1735610552498,0.7665,3347.0,3346.5,2.98811]
[1735610552651,0.7665,3347.0,3346.3,3.47053411]
[1735610552854,0.7665,3347.0,3346.5,2.98815]
[1735610553468,0.7665,3347.0,3346.3,3.45215767]
[1735610553670,0.7665,3347.5,3346.5,0.8127]
[1735610553993,0.7665,3347.5,3347.0,2.98773]
[1735610554988,0.7665,3347.5,3346.8,2.98792]
[1735610555188,0.7665,3347.5,3346.9,0.0298739]
[1735610555386,0.7665,3347.5,3347.2,2.98756]
[1735610558841,0.49664173,3348.1,3347.3,0.7775]
[1735610558842,1.28304173,3348.1,3347.3,0.7775]
[1735610559141,0.7864,3348.1,3347.5,2.98722]
[1735610559424,0.7864,3348.1,3347.5,3.01708946]
[1735610559670,0.7864,3348.1,3347.6,2.9872]
[1735610560280,0.7864,3348.1,3347.6,3.39427836]
[1735610560747,0.7864,3348.1,3347.8,2.987]
[1735610560897,0.7864,3348.4,3347.9,0.02986607]
[1735610561221,0.02741601,3348.3,3348.1,2.98676]
[1735610561593,0.7864,3348.4,3348.1,2.98676]
[1735610562405,0.7864,3348.4,3348.1,3.43891767]
[1735610563283,0.7864,3349.1,3348.1,3.45215767]
[1735610563523,0.7864,3349.1,3348.5,2.98639]
[1735610563892,0.02800145,3349.0,3348.5,2.98639]
[1735610570520,0.02800145,3349.0,3348.3,2.98656]
[1735610570726,0.8002,3348.9,3348.3,2.98656]
[1735610570939,0.02800145,3348.8,3348.3,2.98656]
[1735610571347,0.02800145,3348.8,3348.3,3.585216]
[1735610571551,0.02800145,3348.8,3348.4,2.98647]
[1735610571732,0.8002,3348.9,3348.4,2.98647]
[1735610572079,0.02800145,3348.8,3348.4,2.98647]
[1735610573562,0.8002,3348.9,3348.4,2.98647]
[1735610573765,0.02800145,3348.8,3348.4,2.98647]
[1735610574068,0.8002,3348.9,3348.4,2.98647]
[1735610574474,0.02800145,3348.8,3348.4,2.98647]
[1735610574777,0.8002,3348.9,3348.4,2.98647]
[1735610574936,0.02800145,3348.8,3348.4,2.98647]
[1735610575133,0.8002,3348.9,3348.4,2.98647]
[1735610575334,0.02800145,3348.8,3348.4,2.98647]
[1735610575534,0.8002,3348.9,3348.4,2.98647]
[1735610575748,0.02800145,3348.8,3348.4,2.98647]
[1735610576055,0.8002,3348.9,3348.4,2.98647]
[1735610579800,0.8002,3348.9,3347.9,6.5]
[1735610580092,0.8002,3348.7,3348.1,2.98676]
[1735610580693,0.02830098,3348.6,3348.1,2.98676]
[1735610581056,0.8002,3348.7,3348.1,2.98676]
[1735610581497,0.02830098,3348.6,3348.1,2.98676]
[1735610581859,0.8002,3348.7,3348.1,2.98676]
[1735610582229,0.02830098,3348.6,3348.1,2.98676]
[1735610582557,0.8002,3348.7,3348.1,2.98676]
[1735610582786,0.02830098,3348.6,3348.1,2.98676]
[1735610583103,0.8002,3348.7,3348.1,2.98676]
[1735610583395,0.02830098,3348.6,3348.1,2.98676]
[1735610583605,0.8002,3348.7,3348.1,2.98676]
[1735610583770,0.02830098,3348.6,3348.1,2.98676]
[1735610583965,0.8002,3349.2,3348.5,2.98633]
[1735610584290,0.02830098,3349.1,3348.7,2.98621]
[1735610584488,0.02830098,3349.1,3348.8,2.98613]
[1735610584907,0.8002,3349.2,3348.9,0.02985544]
[1735610585106,0.8002,3349.8,3349.3,2.98565]
[1735610585308,0.8002,3349.8,3349.4,2.9856]
[1735610585620,0.0277948,3349.7,3349.4,3.28416]
[1735610585965,0.8002,3349.8,3349.4,3.28416]
[1735610587485,0.02837084,3349.7,3349.4,2.9856]
[1735610587686,0.02837084,3349.7,3349.1,3.0]
[1735610587868,0.8002,3349.8,3349.2,2.98578]
[1735610588069,0.8002,3349.8,3349.3,2.98563]
[1735610588533,0.02886219,3349.7,3349.3,2.98563]
[1735610588823,0.8002,3349.8,3349.3,2.98563]
[1735610589170,0.02886219,3349.7,3349.3,3.882789]
[1735610589369,0.8002,3349.8,3349.3,3.882789]
[1735610589599,0.02886219,3349.7,3349.3,3.882789]
[1735610589813,0.8002,3349.8,3349.3,3.882789]
[1735610590215,0.02886219,3349.7,3349.3,3.882789]
[1735610590508,0.814,3349.6,3349.0,6.5]
[1735610590881,0.02886219,3349.5,3349.0,9.48594]
[1735610591083,0.02886219,3349.5,3348.8,2.98613]
[1735610591325,0.02886219,3349.5,3348.7,3.8317]
[1735610591938,0.02886219,3349.5,3348.9,2.98596]
[1735610592414,0.814,3349.6,3348.9,2.98596]
[1735610592786,0.0288334,3349.5,3348.9,2.98596]
[1735610593913,0.0288334,3349.5,3349.0,2.98594]
[1735610594832,0.0288334,3349.5,3348.7,3.0]
[1735610594975,0.814,3349.6,3348.8,1.327755]
[1735610595331,0.0288334,3349.5,3349.2,2.98576]
[1735610596583,0.814,3349.6,3349.2,2.98576]
[1735610599546,0.814,3349.6,3349.5,2.98552]
[1735610599838,0.814,3350.1,3349.5,2.98552]
[1735610600321,0.02773709,3350.0,3349.5,2.98552]
[1735610600521,0.02773709,3350.0,3349.3,2.98567]
[1735610600724,0.814,3349.9,3348.9,3.0]
[1735610600908,0.814,3349.8,3348.8,9.48606]
[1735610601125,0.814,3349.6,3348.8,2.98606]
[1735610602650,0.02785232,3349.5,3348.6,7.2912]
[1735610603147,0.814,3349.6,3349.0,2.98591]
[1735610603653,0.02785232,3349.5,3349.0,2.98591]
[1735610605155,0.7754,3349.4,3348.6,10.2775]
[1735610605313,2.98561,3349.4,3348.6,6.5]
[1735610605659,0.7605,3349.0,3348.6,6.5]
[1735610605854,2.72618823,3349.0,3348.6,6.5]
[1735610606029,0.78786828,3348.9,3348.3,1.24434682]
[1735610606230,0.78786828,3348.9,3348.0,1.24434682]
[1735610606420,2.98615,3348.8,3348.0,1.24434682]
[1735610606620,0.7605,3348.6,3348.0,1.24434682]
[1735610607136,0.7605,3348.4,3348.0,1.24434682]
[1735610607465,0.7605,3348.4,3347.4,4.53554771]
[1735610607658,0.02733755,3348.3,3347.5,3.0]
[1735610607821,0.7605,3348.2,3347.5,3.0]
[1735610608155,0.7605,3348.2,3347.4,1.54824771]
[1735610608360,0.7605,3348.2,3347.6,2.9872]
[1735610609692,0.7605,3348.2,3347.6,3.01706904]
[1735610610119,0.7605,3348.2,3347.8,2.98698]
[1735610610243,0.7605,3349.2,3347.9,0.7845]
[1735610610447,0.02733755,3348.1,3347.9,0.7845]
[1735610610692,0.7605,3349.2,3348.2,2.98659]
[1735610611585,0.7605,3349.1,3348.0,2.98684]
[1735610611886,0.7605,3348.9,3348.0,5.98682]
[1735610612051,0.7605,3348.9,3348.1,0.81436457]
[1735610612300,0.7605,3348.9,3348.1,0.02986457]
[1735610612447,0.7605,3348.9,3348.0,3.0]
[1735610613493,0.7605,3348.9,3347.9,0.7845]
[1735610613793,0.7605,3348.9,3348.0,2.9868]
[1735610614290,0.7605,3348.9,3347.5,12.21343823]
[1735610614291,2.98637,3348.6,3347.5,6.5]
[1735610614464,0.7605,3348.4,3347.5,6.5]
[1735610614866,0.7605,3348.4,3347.5,9.4873]
[1735610615068,0.7605,3348.4,3347.3,1.24434682]
[1735610615272,0.7605,3348.4,3347.4,0.68953671]
[1735610615595,0.7605,3348.4,3347.4,3.67689671]
[1735610615800,0.7605,3348.4,3347.5,2.98724]
[1735610620103,0.7605,3348.4,3347.6,2.98718]
[1735610623481,0.7825,3348.3,3347.1,0.7845]
[1735610623797,0.7825,3348.1,3347.1,2.98765]
[1735610623998,0.7825,3347.9,3347.1,2.98765]
[1735610624380,0.7825,3347.9,3346.8,0.8272]
[1735610624381,0.7825,3347.9,3346.8,2.98786]
[1735610624557,0.41103081,3348.0,3346.6,1.24434682]
[1735610624558,0.7825,3347.7,3346.6,4.23242682]
[1735610624760,0.7825,3347.6,3346.7,2.98801]
[1735610625072,0.1565,3347.5,3346.7,2.98801]
[1735610625836,0.8099,3347.4,3346.7,2.98801]
[1735610625962,0.8099,3347.4,3346.5,2.98818]
[1735610627226,0.8099,3347.4,3346.2,3.7611]
[1735610627404,0.55,3347.3,3346.1,6.5]
[1735610627709,0.8099,3347.0,3346.1,6.5]
[1735610627895,0.8099,3347.0,3346.1,9.48854]
[1735610628065,0.8099,3347.0,3346.1,2.98854]
[1735610628266,0.8099,3347.0,3346.4,2.9882]
[1735610628708,0.8099,3347.0,3346.2,2.98845]
[1735610629121,0.8099,3347.0,3345.9,2.98864]
[1735610629320,0.8099,3346.9,3345.9,4.28623282]
[1735610629787,0.8099,3346.9,3345.9,2.98864]
[1735610630172,0.8099,3346.9,3345.6,3.7611]
[1735610630507,0.8099,3346.9,3346.1,2.98854]
[1735610631268,0.8099,3346.9,3345.8,3.0]
[1735610631518,0.8099,3346.9,3346.2,2.98845]
[1735610632673,0.8099,3346.9,3345.8,3.0]
[1735610632999,0.8099,3346.9,3346.0,2.98863]
[1735610633194,0.8099,3346.9,3345.6,10.2611]
[1735610633370,0.8099,3346.9,3346.2,0.8138]
[1735610633577,0.8099,3346.9,3346.2,3.8138]
[1735610633780,0.8099,3346.9,3346.4,2.98821]
[1735610633993,0.8099,3346.9,3346.4,3.967263]
[1735610635424,0.8099,3346.9,3346.4,2.98821]
[1735610636685,0.8099,3346.9,3346.2,3.0]
[1735610636880,0.8099,3346.9,3346.5,2.98818]
[1735610638425,0.8099,3346.9,3346.2,3.0]
[1735610638629,0.8099,3346.9,3346.3,2.98834]
[1735610638829,0.8099,3346.9,3346.3,4.318554]
[1735610639134,0.8099,3346.9,3346.5,2.98818]
[1735610639495,0.8099,3346.9,3346.6,2.9881]
[1735610640426,0.8099,3346.9,3346.4,0.02987841]
[1735610640634,0.8099,3346.9,3346.3,1.330214]
[1735610640838,0.8099,3346.9,3346.4,2.98826]
[1735610642139,0.8099,3346.9,3345.8,6.5]
[1735610642384,0.8099,3346.9,3346.0,2.98862]
[1735610643538,0.8099,3346.9,3345.7,0.8138]
[1735610643698,2.98793,3346.8,3345.7,2.98882]
[1735610643898,0.7534,3346.7,3345.7,2.98882]
[1735610645106,0.7534,3346.4,3345.3,2.98919]
[1735610645301,0.7534,3346.1,3345.0,6.5]
[1735610645494,0.7534,3346.1,3345.3,2.98926]
[1735610646796,0.7534,3346.1,3345.5,2.98908]
[1735610649753,0.7724,3346.9,3345.8,0.8168]
[1735610649929,0.7724,3346.9,3345.9,3.34601762]
[1735610650257,0.7724,3346.9,3346.0,0.02988178]
[1735610650555,0.7724,3346.9,3346.2,2.98839]
[1735610650865,0.7724,3346.9,3346.4,2.98827]
[1735610651008,0.7724,3346.9,3346.5,3.28998517]
[1735610651365,0.7724,3346.9,3346.5,2.98817]
[1735610651499,0.7724,3346.9,3346.6,2.98802]
[1735610651699,0.7724,3347.2,3346.8,2.98789]
[1735610651934,0.7724,3347.2,3346.8,0.298789]
[1735610652135,0.7724,3347.5,3347.1,2.98763]
[1735610655844,0.7724,3347.5,3346.9,2.98783]